Cogmind - Beta 10.2 @@@ ROGUE MODE // 2021.05.08 @ 02:58:01 Player: Grimhilt Result: Destroyed by G-50 Soldier with Heavy Laser Performance ------------- Evolutions (2) 1000 Regions Visited (3) 600 Robots Destroyed (35) 175 Value Destroyed (739) 739 Prototype IDs (0) 0 Alien Tech Used (0) 0 Bonus (27) 27 TOTAL SCORE: 2541 Bonus ------- High Alert Combat Kills 27 Cogmind --------- Core Integrity 0/550 Matter 60/300 Energy 92/100 System Corruption 0% Temperature Cool (18) Movement Core (300) Ox5 Location -8/Materials Parts ------- > --- POWER (2) -------- (None) > --- PROPULSION (4) --- (None) > --- UTILITY (2) ------ Large Storage Unit > --- WEAPON (3) ------- (None) > --- INVENTORY (10) --- Aluminum Leg Large Storage Unit Weight Redist. System Particle Charger Reflective Plating Particle Gun Peak State ------------ > --- POWER ------------ Ion Engine Light Ion Engine > --- PROPULSION ------- Aluminum Leg Aluminum Leg Aluminum Leg Aluminum Leg > --- UTILITY ---------- Large Storage Unit Reflective Plating > --- WEAPON ----------- EM Pulse Gun Improved Light Cannon Shock Bomb Launcher > --- INVENTORY -------- Ion Engine Aluminum Leg Improved Aluminum Leg Large Storage Unit Weight Redist. System Particle Charger Reflective Plating Medium Laser Beam Rifle Particle Cannon [Rating: 17] Favorites ----------- Power Ion Engine Engine Ion Engine Propulsion Aluminum Leg Leg Aluminum Leg Utility Large Storage Unit Device High-powered Tractor Beam Storage Large Storage Unit Protection Reflective Plating Weapon Assault Rifle Energy Gun Particle Gun Energy Cannon Particle Cannon Ballistic Gun Assault Rifle Ballistic Cannon Improved Light Cannon Launcher Rocket Launcher Build | -11 -10 -9 -8 ------- Run | Scr Mat Mat Mat Slots Evolved 4 | . . 2 2 Power 1 | . . . 1 Propulsion 2 | . . 2 . Utility . | . . . . Weapon 1 | . . . 1 Parts Attached 34 | 6 10 8 10 Power 5 | 1 1 1 2 Engine 5 | 1 1 1 2 Core . | . . . . Reactor . | . . . . Propulsion 11 | 2 4 4 1 Treads . | . . . . Leg 11 | 2 4 4 1 Wheel . | . . . . Hover . | . . . . Flight . | . . . . Utility 5 | 1 3 . 1 Device 2 | . 2 . . Storage 2 | 1 1 . . Processor . | . . . . Hackware . | . . . . Protection 1 | . . . 1 Artifact . | . . . . Weapon 13 | 2 2 3 6 Energy Gun 7 | 1 1 1 4 Energy Cannon 1 | . . . 1 Ballistic Gun 1 | 1 . . . Ballistic Cannon 1 | . . 1 . Launcher 3 | . 1 1 1 Special Weapon . | . . . . Impact Weapon . | . . . . Slashing Weapon . | . . . . Piercing Weapon . | . . . . Special Melee Weapon . | . . . . Unidentified Prototypes . | . . . . Parts Lost 24 | . 1 7 16 Power 4 | . . 1 3 Propulsion 7 | . . 2 5 Utility 2 | . . 1 1 Weapon 11 | . 1 3 7 Highest Loss Streak 16 | . 1 6 16 Average Slot Usage (%) 93 | . 99 89 82 Engine 12 | . 14 10 14 Leg 32 | . 28 39 29 Device 9 | . 13 6 . Storage 12 | . 14 11 9 Energy Gun 5 | . 9 . 7 Ballistic Gun 8 | . 14 3 . Ballistic Cannon 3 | . . 7 7 Launcher 6 | . 4 10 7 Naked Turns . | . . . . Heaviest Build 40 | 13 28 30 40 Greatest Support 40 | 20 20 40 40 Greatest Overweight (x) 1 | 1 1 1 1 Average Overweight (x) . | . . . . Largest Inventory Capacity 10 | 6 10 10 10 Average Capacity 9 | 5 8 10 10 Most Carried 10 | 5 10 10 10 Average Carried 8 | 3 8 8 8 Final Capacity 10 | 6 10 10 10 Final Carried 10 | 5 10 9 6 Class Distribution -------------------- 93% | Mutant 6% | Tank Dominant Class ---------------- Mutant | -10/Materials Mutant | -9/Materials Mutant | -8/Materials Resources | -11 -10 -9 -8 ----------- Run | Scr Mat Mat Mat Matter Collected 862 | 217 289 267 89 Remotely 490 | . 289 201 . Salvage Created 726 | . 321 307 98 Parts 56 | . 20 32 4 Haulers Intercepted 2 | . 1 . 1 Recyclers Shooed 2 | . 1 1 . Parts Field Recycled . | . . . . Retrieved Matter . | . . . . Parts Self-Destructed . | . . . . Prevented . | . . . . Kills | -11 -10 -9 -8 ------- Run | Scr Mat Mat Mat Combat Hostiles Destroyed 22 | . 7 14 1 Guns 5 | . 5 . . Cannons 4 | . . 4 . AOE 12 | . 2 10 . Classes Destroyed 9 | . 7 2 . Worker 2 | . 1 1 . Builder 2 | . 1 . 1 Hauler 2 | . 1 . 1 Recycler 2 | . 1 1 . Operator 1 | . . 1 . Watcher 4 | . 1 3 . Swarmer 9 | . 3 6 . Grunt 10 | . 4 5 1 Sentry 3 | . . 3 . Best Kill Streak 10 | . 2 10 2 Combat Bots Only 9 | . 2 9 1 Max Kills in Single Turn 3 | . 2 3 1 Gunslinging . | . . . . Exploded 3 | . 2 3 . Melee . | . . . . Uniques/NPCs Destroyed . | . . . . Combat | -11 -10 -9 -8 -------- Run | Scr Mat Mat Mat Damage Taken 2780 | . 413 728 1639 Core 781 | . 65 149 567 Absorbed by Shields . | . . . . Core Remaining (%) 78 | 100 74 62 . Volleys Fired 107 | . 50 32 25 Largest 3 | . 2 2 3 Hottest 160 | . 85 104 160 Shots Fired 188 | . 81 54 53 Gun 107 | . 79 7 21 Cannon 45 | . . 23 22 Launcher 36 | . 2 24 10 Special . | . . . . Kinetic 96 | . 50 27 19 Thermal 41 | . 29 3 9 Explosive 26 | . 2 24 . Electromagnetic 25 | . . . 25 Robot Hit Streak 5 | . 5 4 5 Robot Miss Streak 5 | . 5 5 5 Penetration Max . | . . . . Secondary Targets . | . . . . Shots Hit Robots 87 | . 36 22 29 Core Hits 58 | . 14 36 8 Critical Hits . | . . . . Critical Kills . | . . . . Critical Parts Destroyed . | . . . . Melee Attacks . | . . . . Impact . | . . . . Slashing . | . . . . Piercing . | . . . . Sneak Attacks . | . . . . Combat Hostiles . | . . . . Follow-up Attacks . | . . . . Damage Inflicted 2546 | . 600 1313 633 Guns 569 | . 420 29 120 Cannons 480 | . . 269 211 Explosions 1488 | . 180 1015 293 Melee . | . . . . Ramming 9 | . . . 9 Kinetic 719 | . 266 283 170 Thermal 325 | . 154 15 156 Explosive 1195 | . 180 1015 . Electromagnetic 298 | . . . 298 Impact . | . . . . Slashing . | . . . . Piercing . | . . . . Highest Corruption . | . . . . Average Corruption . | . . . . Corruption Purged . | . . . . Overload Shots . | . . . . Overflow Damage 69 | . 7 44 18 Projectiles . | . . . . Explosions 69 | . 7 44 18 Melee . | . . . . Knockbacks 2 | . . 1 1 Impact . | . . . . Kinetic 2 | . . 1 1 Secondary . | . . . . Self-Inflicted Damage 188 | . . 165 23 Shots 7 | . . 6 1 Rammed 5 | . . . 5 Targets Rammed 5 | . . . 5 Kicked . | . . . . Crushed . | . . . . Highest Temperature 594 | . 207 158 594 Average Temperature 131 | . 74 57 233 Received Heat Transfer 816 | . 165 165 486 Effects 17 | . . . 17 Shutdowns 2 | . . . 2 Energy Bleed 2 | . . . 2 Interference 3 | . . . 3 Matter Decay 4 | . . . 4 Short Circuit 2 | . . . 2 Damage (minor) 1 | . . . 1 Damage (major) 1 | . . . 1 Damage (core) 2 | . . . 2 Siege Activations . | . . . . Robots Corrupted 1 | . . . 1 Combat Hostiles 1 | . . . 1 Parts Fried 1 | . . . 1 Impact Corruptions . | . . . . Robots Melted . | . . . . Combat Hostiles . | . . . . Parts Melted 1 | . 1 . . Heat Transferred 755 | . 370 37 348 Parts Sabotaged . | . . . . Parts Stolen . | . . . . Parts Stripped . | . . . . Power Chain Reactions 2 | . . . 2 Missiles Intercepted . | . . . . Alert | -11 -10 -9 -8 ------- Run | Scr Mat Mat Mat Peak Influence 472 | . 200 472 188 Initial 126 | . . 26 126 Average 132 | . 62 248 128 Maximum Alert Level 2 | . 1 2 . Low Security (%) 76 | 100 99 32 100 Level 1 19 | . . 54 . Level 2 4 | . . 12 . Level 3 . | . . . . Level 4 . | . . . . Level 5 . | . . . . High Security . | . . . . Max Security . | . . . . Squads Dispatched 5 | . 1 4 . Investigation . | . . . . Extermination . | . . . . Reinforcement 5 | . 1 4 . Assault . | . . . . Garrison . | . . . . Intercept . | . . . . Construction Impeded . | . . . . Haulers Reinforced . | . . . . Stealth | -11 -10 -9 -8 --------- Run | Scr Mat Mat Mat Distress Signals 1 | . . 1 . Communications Jammed . | . . . . Distress Signals . | . . . . Times Spotted 47 | . 19 23 5 Peak Tracking Total 5 | . 3 5 3 Tactical Retreats 2 | . 1 . 1 Traps | -11 -10 -9 -8 ------- Run | Scr Mat Mat Mat Traps Triggered . | . . . . Indirectly . | . . . . Trap Hack Attempts . | . . . . Triggered . | . . . . Disarmed . | . . . . Reprogrammed . | . . . . Reused . | . . . . Traps Extracted . | . . . . Installed . | . . . . Triggered . | . . . . Machines | -11 -10 -9 -8 ---------- Run | Scr Mat Mat Mat Machines Disabled 4 | . . 4 . Max in Single Turn 1 | . . 1 . Machines Sabotaged . | . . . . Garrisons Compromised . | . . . . Overloaded Fab Kills . | . . . . Fab Network Shutdowns . | . . . . Hacking | -11 -10 -9 -8 --------- Run | Scr Mat Mat Mat Machines Accessed 2 | . 1 1 . Terminals 1 | . 1 . . Fabricators . | . . . . Repair Stations . | . . . . Recycling Units . | . . . . Scanalyzers 1 | . . 1 . Garrison Access . | . . . . Total Hacks 5 | . 3 2 . Successful 3 | . 1 2 . Failed 2 | . 2 . . Catastrophic . | . . . . Database Lockouts . | . . . . Manual . | . . . . Terminals 3 | . 3 . . Fabricators . | . . . . Repair Stations . | . . . . Recycling Units . | . . . . Scanalyzers 2 | . . 2 . Garrison Access . | . . . . Terminal Hacks 1 | . 1 . . Robot Analysis 1 | . 1 . . Fabricator Hacks . | . . . . Repair Station Hacks . | . . . . Recycling Unit Hacks . | . . . . Scanalyzer 2 | . . 2 . Insert Component 1 | . . 1 . Analyze 1 | . . 1 . Garrison Access Hacks . | . . . . Unauthorized Hacks . | . . . . Terminals . | . . . . Fabricators . | . . . . Repair Stations . | . . . . Recycling Units . | . . . . Scanalyzers . | . . . . Garrison Access . | . . . . Data Cores Recovered . | . . . . Used . | . . . . Hacking Detections 2 | . 1 1 . Full Trace Events . | . . . . Feedback Events . | . . . . Feedback Blocked . | . . . . Robot Schematics Acquired . | . . . . Robots Built . | . . . . Matter . | . . . . Time . | . . . . Total Robot Build Rating . | . . . . Part Schematics Acquired 1 | . . 1 . Parts Built . | . . . . Matter . | . . . . Time . | . . . . Total Part Build Rating . | . . . . Parts Repaired . | . . . . Time . | . . . . Parts Recycled . | . . . . Recycled Matter . | . . . . Retrieved Matter . | . . . . Retrieved Components . | . . . . Parts Scanalyzed 1 | . . 1 . Part Schematics Acquired 1 | . . 1 . Parts Damaged . | . . . . Bothacking | -11 -10 -9 -8 ------------ Run | Scr Mat Mat Mat Used RIF Installer . | . . . . Robots Hacked . | . . . . Non-combat . | . . . . Combat . | . . . . Robot Hacks Applied . | . . . . Relay Couplers Released . | . . . . Robots Rewired . | . . . . Allies Hacked . | . . . . Hacks Repelled . | . . . . Allies | -11 -10 -9 -8 -------- Run | Scr Mat Mat Mat Total Allies . | . . . . Largest Group . | . . . . Highest-Rated Group . | . . . . Highest-Rated Ally . | . . . . Total Orders . | . . . . Ally Attacks . | . . . . Total Damage . | . . . . Kills . | . . . . Allies Corrupted . | . . . . Allies Melted . | . . . . Intel | -11 -10 -9 -8 ------- Run | Scr Mat Mat Mat Robot Analysis Total 1 | . 1 . . Derelict Logs Recovered . | . . . . Drone Launches . | . . . . Drone Recoveries . | . . . . Exploration | -11 -10 -9 -8 ------------- Run | Scr Mat Mat Mat Turns Passed 1588 | 71 765 553 199 Spaces Moved 800 | 49 382 288 81 Core 10 | 10 . . . Treads . | . . . . Legs 790 | 39 382 288 81 Wheels . | . . . . Hover . | . . . . Flight . | . . . . Fastest Speed 50 | 50 120 120 120 Average Speed 129 | 106 139 121 123 Slowest Speed 150 | 120 150 150 150 Overloaded Moves . | . . . . Propulsion Burnouts . | . . . . Robots Hopped . | . . . . Cave-ins Triggered . | . . . . Exploration Rate (%) 28 | 3 69 30 11 Regions Visited 3 Branch Regions . Pre-discovered Areas . | . . . . Known Exits Taken . | . . . . Unknown Exits Taken 3 | 1 1 1 . Scrap Searched . | . . . . Spaces Dug . | . . . . Terrain Destroyed 184 | . 7 163 14 Melee . | . . . . Projectile 5 | . . 4 1 AOE 179 | . 7 159 13 Terrain Rammed . | . . . . Walls Destroyed . | . . . . Machines Disabled . | . . . . Actions | -11 -10 -9 -8 --------- Run | Scr Mat Mat Mat Total 1173 | 67 539 437 130 Wait 182 | 3 75 102 2 Move 797 | 48 381 287 81 Hop . | . . . . Pick Up 34 | 10 11 7 6 Fast Attach 3 | 1 1 1 . Attach 22 | 5 1 7 9 Detach . | . . . . Swap 9 | . 8 . 1 Drop 14 | . 12 1 1 Fire 107 | . 50 32 25 Melee . | . . . . Ram 2 | . . . 2 Kick 3 | . . . 3 Crush . | . . . . Escape Stasis . | . . . . Rewire . | . . . . Trap . | . . . . Miscellaneous . | . . . . Route ------- -11/Scrapyard -10/Materials (discovered 2 exits: *Mat / [*Min]) -9/Materials -8/Materials History --------- Turn | Location | Event 7 | -11/Scrapyard | Discovered new exit (range 16) 72 | -11/Scrapyard | Entered Materials 300 | -10/Materials | Build established: Mutant 500 | -10/Materials | Discovered new exit (range 15) 813 | -10/Materials | Discovered new exit (range 13) 837 | -10/Materials | Entered another Materials area 837 | -9/Materials | Evolved 2 slots: Propulsion x2 1072 | -9/Materials | Destroyed 9 combat bots 1197 | -9/Materials | Lost 6 parts (1p2n1u2w) 1306 | -9/Materials | Discovered new exit (range 16) 1390 | -9/Materials | Entered another Materials area 1390 | -8/Materials | Evolved 2 slots: Power x1, Weapon x1 1562 | -8/Materials | Core integrity fell below 50% 1580 | -8/Materials | Core integrity fell below 20% 1589 | -8/Materials | Destroyed by G-50 Soldier with Heavy Laser Last Messages --------------- 01574_ Broken Ion Engine destroyed. 01575_ U-05 Engineer lays Concrete. 01577_ Broken Particle Cannon destroyed. 01577_ U-05 Engineer lays Concrete. 01581_ Slammed into H-55 Commando. 01581_ U-05 Engineer lays Concrete. 01582_ Slammed into G-47 Trooper. 01583_ U-05 Engineer lays Concrete. 01584_ Slammed into G-47 Trooper. 01584_ U-05 Engineer lays Concrete. 01585_ Imp. Aluminum Leg destroyed. 01585_ U-05 Engineer lays Concrete. 01585_ Slammed into G-47 Trooper. 01586_ U-05 Engineer lays Concrete. 01587_ G-47 Trooper misfires. 01587_ U-05 Engineer builds a Wall. 01587_ U-05 Engineer lays Concrete. 01588_ Penetrated by Slug. 01588_ K-01 Serf collects debris. 01588_ Slammed into G-47 Trooper. Map ----- +----------------------------------------------------+ | ???????????????# #??????????????????? | | ???????????????# [ #??????????????????? | | ???????????????#""" #??????????????????? | | ???????????????#""" #####??????????????? | | ???????????????#""" #"""#??????????????? | | ???????????????# ]#"R"#??????????????? | | ??????????????######+####" "#######????????? | | ??????????????# #????????? | | ??????????????# #????????? | | ??????????????# """ """ #????????? | | ??????????????####### """"""""" #????????? | | ????????????????????# """"" #????????? | | ????????????????????# ########?? | | ????????????????????# # | | ??????????####################### ########?? | | ??????????# #;## !######## #????????? | | ??????????# T / u ]] #????????? | | ??????????# # []##########????????? | | ??????????# /????# = ###?????????????????? | | ?????????????????# #???????????????????? | | ?????? ?????????# ##???????????????????? | | ?????# ######## h #????????????????????? | | ?????+ k! = g #????????????????????? | | ?????????# !! #????????????????????? | | ?????????# !!!#????????????????????? | | ?????????# @!u#????????????????????? | | ?????????# !g!#????????????????????? | | ?????????# ???????????????????? | | ?????????+ ?????????????????? | | ?????????# ???????????????? | | ?????????## #####+#########+#??????????????? | | ??????????#????? ?? ??????????????????????? | | ???????????????? ?? ??????????????????????? | | ???????????????????? ??????????????????????? | | ???????????????????????????????????????????? | | ???????????????????????????????????????????? | | ???????????????????????????????????????????? | | ???????????????????????????????????????????? | | ???????????????????????????????????????????? | | ???????????????????????????????????????????? | | ???????????????????????????????????????????? | | ???????????????????????????????????????????? | | ???????????????????????????????????????????? | | ???????????????????????????????????????????? | | ???????????????????????????????????????????? | | ???????????????????????????????????????????? | | ???????????????????????????????????????????? | | ???????????????????????????????????????????? | | ???????????????????????????????????????????? | | ???????????????????????????????????????????? | +----------------------------------------------------+ Best States ------------- Heat Dissipation 31 Energy Generation 15 Energy Capacity 275 Matter Stores 300 Matter Capacity 300 Sight Range 16 Terrain Scan Density 10 Armor Coverage 150 Resistance: TH 10 Evasion (%) 50 Item Schematics ----------------- Weight Redist. System | -9/Materials | Scanalyzed Robot Schematics ------------------ None Fabricated ------------ Nothing Alien Tech Used ----------------- None Achievements -------------- Use The Force Challenges ------------ None Game ------ Seed LayeredVariableDoublenader Manual? 0 Play Time 00:14:19 Cumulative 15.8 hours Start 2021.05.08 @ 02:44:10 End 2021.05.08 @ 02:58:01 Sessions 1 Manual Loads 0 Difficulty Rogue Special Mode None Game No. 28 Rogue 28 Adventurer 0 Explorer 0 Win Type - Total 0 Types 0/0/0/0/0/0/0/0/0 Lore% 19 Gallery% 21 Achievement% 15 Wizard Run 0 Options --------- ASCII 0 Keyboard 0 Movement Mouse Keybinds 0 Fullscreen 2 Font 18/X11 Map View 76x50 Tactical HUD 1 Map Filters NONE Filters NONE Steam 1 RUN: d96e0a23-0f12-44d6-a5f2-d7716371f230